bitfinex-derivatives/quotes_ETHF0:USTF0_20250830
["timestamp","ask_amount","ask_price","bid_price","bid_amount"]
[1756570090641,3.2078,4374.5,4373.8,0.7343]
[1756570090642,0.4985,4373.9,4373.8,0.7343]
[1756570091542,0.4985,4373.9,4373.8,0.5033]
[1756570091746,0.4985,4373.9,4373.8,0.7343]
[1756570092446,0.4985,4373.9,4373.8,0.5033]
[1756570092646,0.4985,4373.9,4373.8,0.7343]
[1756570093653,0.4985,4373.9,4373.0,2.0299039]
[1756570093851,0.4985,4373.2,4373.1,0.7343]
[1756570095151,0.4985,4373.2,4373.1,0.5033]
[1756570095353,0.4985,4373.2,4373.1,0.7343]
[1756570095551,0.4985,4373.2,4373.1,0.231]
[1756570095755,0.4985,4373.2,4372.9,32.926]
[1756570095955,0.4985,4373.1,4373.0,0.231]
[1756570096151,0.2028,4373.1,4373.0,0.7343]
[1756570096357,3.7063,4373.5,4373.4,0.1985]
[1756570096563,3.7063,4373.5,4373.4,0.7343]
[1756570097362,3.7063,4373.5,4373.4,0.231]
[1756570098260,3.7063,4373.5,4372.9,32.926]
[1756570098261,0.2957,4373.4,4372.9,32.926]
[1756570098562,0.4985,4373.4,4373.3,0.231]
[1756570098756,3.7063,4373.4,4373.3,0.231]
[1756570099556,3.4106,4373.4,4372.9,32.926]
[1756570099762,3.4106,4373.4,4373.0,0.231]
[1756570099763,0.2028,4373.1,4373.0,0.231]
[1756570099963,0.4985,4373.1,4373.0,0.231]
[1756570100155,0.2028,4373.1,4373.0,0.231]
[1756570100357,0.4985,4373.1,4373.0,0.231]
[1756570101459,0.2957,4373.0,4372.9,32.926]
[1756570101667,0.2028,4373.0,4372.9,0.231]
[1756570101865,0.2028,4373.0,4372.9,0.4295]
[1756570102057,0.4985,4373.0,4372.9,0.4295]
[1756570102261,0.4985,4373.0,4372.9,0.7343]
[1756570102462,0.4985,4373.0,4372.9,0.231]
[1756570102967,0.4985,4373.0,4372.5,0.3048]
[1756570103161,3.2078,4372.7,4372.6,0.231]
[1756570103361,3.4106,4372.7,4372.6,0.231]
[1756570103765,3.7063,4372.7,4372.6,0.231]
[1756570104464,3.7063,4372.7,4372.2,0.3048]
[1756570104664,3.7063,4372.7,4372.3,0.231]
[1756570105666,3.7063,4372.7,4371.9,0.3048]
[1756570105867,0.3452,4373.3,4371.4,32.934]
[1756570105868,3.7063,4372.0,4371.4,32.934]
[1756570106174,3.7063,4372.0,4371.6,0.3048]
[1756570106366,3.7063,4372.0,4371.5,0.231]
[1756570106966,0.2957,4371.9,4371.8,0.1985]
[1756570107163,0.4985,4371.9,4371.8,0.5033]
[1756570107369,0.4985,4371.9,4371.8,0.7343]
[1756570109970,3.2078,4372.0,4371.8,0.4295]
[1756570110178,3.2078,4372.0,4371.9,0.5033]
[1756570110368,3.7063,4372.0,4371.9,0.5033]
[1756570112477,3.7063,4372.0,4371.8,0.231]
[1756570112870,3.7063,4372.0,4371.9,0.3048]
[1756570113177,0.2028,4371.5,4371.4,32.934]
[1756570113378,0.4985,4371.5,4371.4,33.4698]
[1756570113571,0.4985,4371.5,4371.4,33.2388]
[1756570113875,0.4985,4371.5,4371.4,33.4698]
[1756570114975,3.2078,4372.0,4371.8,0.1985]
[1756570114976,0.2028,4371.9,4371.8,0.1985]
[1756570115171,3.2078,4372.0,4371.8,0.4295]
[1756570115373,3.2078,4372.0,4371.9,0.3048]
[1756570115674,3.7063,4372.0,4371.5,0.3048]
[1756570115878,0.2028,4371.7,4371.6,0.5358]
[1756570116080,0.4985,4371.7,4371.6,0.5358]
[1756570116572,0.4985,4371.7,4371.6,0.7343]
[1756570116777,0.4985,4371.5,4371.4,33.2388]
[1756570117079,3.7063,4371.5,4371.4,33.4698]
[1756570118677,3.2078,4371.5,4371.4,33.4698]
[1756570119969,3.2078,4371.5,4371.4,33.2388]
[1756570120176,3.2078,4371.5,4371.4,33.4698]
[1756570122282,3.5016,4371.5,4371.4,33.4698]
[1756570123178,3.2078,4371.5,4371.4,33.4698]
[1756570129280,1.2212995,4373.0,4371.4,33.4698]
[1756570129281,2.896,4372.0,4371.9,0.1961]
[1756570129491,3.2078,4373.1,4372.5,0.112]
[1756570129679,3.2078,4373.1,4373.0,0.2911]
[1756570129879,3.2078,4373.1,4373.0,0.5221]
[1756570131485,0.2938,4373.7,4373.1,0.112]
[1756570131687,0.4819,4373.3,4373.2,0.5221]
[1756570142392,0.4819,4373.3,4372.9,0.112]
[1756570142690,0.4819,4373.1,4373.0,0.231]
[1756570144687,0.4819,4373.1,4373.0,0.5221]
[1756570145290,3.5016,4373.3,4373.1,0.112]
[1756570145489,3.5016,4373.3,4373.2,0.2911]
[1756570147496,3.6897,4373.3,4373.2,0.2911]
[1756570153399,3.6897,4373.3,4373.2,0.1791]
[1756570153699,3.6897,4373.3,4373.0,0.3422]
[1756570153895,0.4819,4373.3,4373.0,0.3422]
[1756570155201,0.4819,4373.3,4373.1,0.1112]
[1756570158003,0.4819,4373.3,4373.0,0.231]
[1756570158408,0.4819,4373.3,4372.8,0.1112]
[1756570158596,0.4819,4373.3,4372.9,0.231]
[1756570159090,0.4819,4373.3,4372.9,0.3422]
[1756570159701,0.4819,4373.3,4373.0,0.1112]
[1756570161704,0.4819,4373.3,4373.2,0.1778]
[1756570162004,3.4127,4373.9,4373.8,0.1778]
[1756570162303,3.4127,4373.9,4373.8,0.5199]
[1756570162803,0.2853,4374.8,4373.9,0.1111]
[1756570165505,0.4902,4374.0,4373.9,0.2889]
[1756570166599,0.4902,4373.9,4373.8,3.4388]
[1756570168103,0.4902,4373.9,4373.8,3.5499]
[1756570168501,0.4902,4373.9,4373.8,3.4388]
[1756570169603,0.4902,4373.9,4373.8,3.7277]
[1756570171206,0.4902,4373.9,4373.8,3.4967]
[1756570171506,0.4902,4373.9,4373.8,3.7277]
[1756570171706,0.4902,4373.9,4373.8,3.4967]
[1756570172006,0.4902,4373.9,4373.8,3.7277]
[1756570172409,0.2853,4374.8,4373.9,0.1111]
[1756570178107,3.2078,4374.9,4374.3,3.2078]
[1756570178301,0.5064,4374.8,4374.7,0.2885]
[1756570179408,0.5064,4374.8,4374.3,3.2078]
[1756570179713,3.2078,4375.4,4374.3,3.2078]
[1756570179714,0.5064,4374.5,4374.4,41.031]
[1756570180213,0.5064,4374.5,4374.4,0.231]
[1756570181807,0.3001,4374.4,4374.3,44.0078]
[1756570182007,0.3001,4374.4,4374.3,44.2388]
[1756570182207,0.3001,4374.4,4374.3,44.3498]
[1756570182503,0.5064,4374.4,4374.3,3.7273]
[1756570185309,0.5064,4374.4,4374.3,3.4963]
[1756570185618,0.5064,4374.4,4374.3,0.231]
[1756570191419,0.5064,4374.4,4374.3,0.5195]
[1756570194219,0.5064,4374.4,4374.3,0.231]
[1756570198722,0.5064,4374.4,4374.0,32.929]
[1756570198921,0.2063,4374.2,4374.1,0.231]
[1756570199221,0.5064,4374.2,4374.1,0.231]
[1756570202518,0.5064,4374.2,4374.0,32.929]
[1756570202820,0.3001,4374.1,4374.0,32.929]
[1756570203024,0.3001,4374.1,4374.0,33.271]
[1756570203225,0.3001,4374.1,4374.0,33.04]
[1756570203423,0.3001,4374.1,4374.0,33.271]
[1756570204226,0.3001,4374.1,4374.0,33.16]
[1756570206026,0.5064,4374.1,4374.0,0.231]
[1756570206725,3.2078,4374.4,4373.3,3.2078]
[1756570206925,0.2063,4373.3,4372.8,3.2078]
[1756570207232,0.5064,4373.1,4372.8,3.2078]
[1756570207426,0.5064,4373.1,4373.0,33.159]
[1756570208840,0.5064,4373.1,4373.0,32.928]
[1756570209026,0.5064,4373.1,4373.0,33.159]
[1756570213432,0.5064,4373.1,4373.0,0.231]
[1756570213633,0.5064,4373.1,4371.9,0.2887]
[1756570213634,0.4964,4372.0,4371.9,0.2887]
[1756570213834,0.4964,4372.0,4371.9,0.5197]
[1756570223538,3.2078,4372.8,4371.9,0.4087]
[1756570223743,3.2078,4373.3,4373.2,0.2889]
[1756570223940,3.2078,4373.8,4373.3,0.1111]
[1756570224141,3.2078,4373.8,4373.7,0.2889]
[1756570224444,3.5054,4373.8,4373.7,0.4889]
[1756570224747,3.7042,4373.8,4373.7,0.4889]
[1756570230949,3.7042,4373.8,4373.7,0.3778]
[1756570231444,3.7042,4373.8,4373.7,0.2]
[1756570232043,0.1988,4373.3,4373.2,0.2889]
[1756570232251,0.4964,4373.3,4373.2,0.5199]
[1756570235359,0.4964,4373.3,4373.2,0.231]
[1756570237048,0.4964,4373.3,4373.2,0.5199]
[1756570239853,0.2976,4373.3,4373.2,0.5199]
[1756570240054,0.5015,4373.3,4373.2,0.231]
[1756570240250,0.2039,4372.4,4372.0,0.1106]
[1756570240447,0.4892,4372.0,4371.9,3.4954]
[1756570240643,0.4892,4372.0,4371.9,3.7264]
[1756570241954,3.2078,4372.8,4371.5,32.933]
[1756570241955,0.4892,4371.6,4371.5,32.933]
[1756570242157,0.4892,4371.6,4371.5,33.164]
[1756570242351,0.4892,4371.6,4371.5,33.2746]
[1756570242952,0.4892,4371.6,4371.5,33.0436]
[1756570243256,0.4892,4371.6,4371.5,33.164]
[1756570243453,0.4892,4371.6,4371.5,32.933]
[1756570243652,0.4892,4371.6,4371.5,33.164]
[1756570244654,0.4892,4371.6,4371.5,33.2746]
[1756570244957,0.4892,4371.6,4371.5,33.0436]
[1756570245157,0.4892,4371.6,4371.5,33.2746]
[1756570248755,0.4892,4371.6,4371.5,33.164]
[1756570249563,0.4892,4371.6,4371.5,32.933]
[1756570249764,0.4892,4371.6,4371.5,33.164]
[1756570250570,0.4892,4371.6,4371.5,32.933]
[1756570250772,0.4892,4371.6,4371.5,33.164]
[1756570252070,0.4892,4371.6,4371.5,33.2746]
[1756570253668,0.4892,4371.6,4371.5,33.0436]
[1756570253971,0.4892,4371.6,4371.5,33.2746]
[1756570260979,0.4892,4371.6,4371.5,33.164]
[1756570261482,0.4892,4371.6,4371.5,0.231]
[1756570261876,0.4892,4371.6,4371.5,0.5186]
[1756570263780,0.4892,4371.6,4371.5,0.177]
[1756570264082,0.4892,4371.6,4371.5,0.231]
[1756570264484,0.2853,4371.5,4370.5,0.1106]
[1756570264678,0.23304433,4373.4,4370.5,0.1106]
[1756570264679,3.2078,4371.2,4370.5,0.1106]
[1756570264885,0.4892,4370.7,4370.6,0.5186]
[1756570268386,3.4973,4370.7,4370.6,0.231]
[1756570268683,3.6898,4370.7,4370.6,0.231]
[1756570269279,3.4003,4370.7,4370.1,32.947]
[1756570269486,0.1925,4370.3,4370.2,0.231]
[1756570269681,0.482,4370.3,4370.2,0.231]
[1756570271286,0.1925,4370.3,4370.1,32.947]
[1756570271487,0.1925,4370.3,4370.2,0.5194]
[1756570271988,0.482,4370.3,4370.2,0.5194]
[1756570274986,0.482,4370.3,4370.2,0.4085]
[1756570275193,0.482,4370.3,4370.2,0.231]
[1756570275392,0.2895,4370.2,4369.9,0.1109]
[1756570275592,3.6898,4370.0,4369.9,0.2884]
[1756570275792,3.6898,4370.0,4369.9,0.5194]
[1756570276390,3.6898,4370.0,4369.2,0.50964]
[1756570276391,3.4003,4370.0,4369.2,0.50964]
[1756570276591,0.2895,4369.9,4369.4,0.1109]
[1756570276792,3.2078,4370.0,4369.4,0.2884]
[1756570276793,0.482,4369.5,4369.4,0.2884]
[1756570276992,0.482,4369.5,4369.4,0.5194]
[1756570278695,0.482,4369.5,4369.4,0.2884]
[1756570278898,0.482,4369.5,4369.4,0.5194]
[1756570279096,0.482,4369.5,4369.4,0.2884]
[1756570279297,0.482,4369.5,4369.4,0.5194]
[1756570280092,0.2895,4369.9,4369.4,0.4085]
[1756570280391,0.482,4369.9,4369.8,0.1775]
[1756570280592,0.482,4369.9,4369.8,0.5194]
[1756570281293,0.482,4369.3,4369.2,0.50964]
[1756570281498,3.6898,4369.3,4369.2,0.74064]
[1756570281893,3.6898,4369.3,4369.2,0.50964]
[1756570282093,3.6898,4369.3,4369.2,0.74064]
[1756570283499,3.6898,4369.3,4369.2,0.50964]
[1756570283694,3.6898,4369.3,4369.2,0.74064]
[1756570285600,3.6898,4369.3,4369.2,0.50964]
[1756570290502,3.6898,4369.3,4369.2,0.79844]
[1756570291607,3.2078,4369.3,4369.2,5.02944]
[1756570293409,3.6898,4369.3,4369.2,1.02944]
[1756570296516,3.6898,4369.3,4369.2,0.62074]
[1756570296808,3.6898,4369.3,4369.2,0.74064]
[1756570297011,3.6898,4369.3,4369.2,1.02944]
[1756570298213,3.6898,4369.3,4369.2,0.91834]
[1756570298512,3.6898,4369.3,4369.2,0.74064]
[1756570299614,3.6898,4369.3,4369.2,0.50964]
[1756570300808,3.6898,4369.3,4369.2,0.19884]
[1756570301809,0.2061,4367.8,4367.7,0.5005]
[1756570302009,0.5064,4367.8,4367.7,0.5005]
[1756570302315,0.5064,4367.8,4367.7,0.7315]
[1756570304820,3.2078,4368.3,4367.7,0.7315]
[1756570305118,0.5064,4368.2,4368.1,0.1932]
[1756570305311,0.5064,4368.2,4368.1,0.231]
[1756570305513,0.5064,4368.1,4367.2,32.967]
[1756570305715,0.5064,4367.4,4367.3,0.5005]
[1756570305918,0.5064,4367.4,4367.3,0.7315]
[1756570307615,0.5064,4367.4,4367.3,0.5005]
[1756570307815,0.5064,4367.4,4367.3,0.7315]
[1756570308609,0.5064,4367.4,4367.3,0.5005]
[1756570308813,0.5064,4367.4,4367.3,0.4242]
[1756570309222,0.5064,4367.4,4367.3,0.7315]
[1756570310615,3.2078,4367.8,4367.3,0.7315]
[1756570310816,3.2078,4367.8,4367.4,0.3073]
[1756570311122,3.4139,4367.8,4367.7,0.5005]
[1756570311311,3.4139,4367.8,4367.7,0.7315]
[1756570311517,3.7142,4367.8,4367.7,0.4242]
[1756570311718,3.7142,4367.8,4367.7,0.7315]
[1756570312423,3.4139,4367.8,4367.7,0.7315]
[1756570312618,3.7142,4367.8,4367.7,0.7315]
[1756570315724,3.7142,4367.8,4367.4,0.3073]
[1756570315925,3.7142,4367.8,4367.5,0.231]
[1756570316219,3.4139,4367.8,4367.5,0.5383]
[1756570316421,0.5064,4367.6,4367.5,0.7315]
[1756570320323,0.5064,4367.6,4367.5,0.231]
[1756570320526,0.5064,4367.6,4367.5,0.7315]
[1756570320816,0.3003,4367.5,4367.3,0.3073]
[1756570321121,3.2078,4367.8,4367.3,0.5005]
[1756570321122,0.5064,4367.4,4367.3,0.5005]
[1756570321319,0.5064,4367.4,4367.3,0.7315]
[1756570321621,0.5064,4367.4,4367.3,0.5005]
[1756570322016,0.5064,4367.4,4367.2,32.967]
[1756570322324,0.5064,4367.4,4367.3,0.231]
[1756570323925,4.5064,4367.4,4367.3,0.231]
[1756570324118,0.5064,4367.4,4367.3,0.231]
[1756570324320,0.5064,4367.4,4367.3,0.7315]
[1756570326221,3.2078,4367.8,4367.3,0.7315]
[1756570326427,0.3003,4367.7,4367.4,0.3073]
[1756570326726,3.2078,4367.8,4367.7,0.5005]
[1756570326929,3.2078,4367.8,4367.7,0.7315]
[1756570327324,3.7057,4367.8,4367.7,0.7315]
[1756570327516,3.7057,4367.8,4367.7,0.5005]
[1756570327722,3.7057,4367.8,4367.7,0.6535]
[1756570333631,1.6283994,4369.7,4367.7,0.6535]
[1756570333632,3.2078,4368.3,4367.8,0.2958]
[1756570333832,0.4804,4367.9,4367.8,0.4945]
[1756570334528,3.6882,4368.3,4368.2,0.4945]
[1756570337127,0.4804,4368.3,4368.2,0.4945]
[1756570337323,3.3964,4368.8,4368.7,0.4945]
[1756570337725,3.6882,4368.8,4368.7,0.1987]
[1756570337930,3.6882,4368.8,4368.3,0.2958]
[1756570338125,0.1886,4368.4,4368.3,0.5268]
[1756570338326,0.4804,4368.4,4368.3,0.5268]
[1756570338831,0.4804,4368.4,4368.3,0.7255]
[1756570342332,0.4804,4368.4,4368.3,0.231]
[1756570342728,0.4804,4368.4,4367.7,3.2078]
[1756570342928,0.1886,4368.4,4367.8,0.5268]
[1756570343133,0.4804,4367.9,4367.8,0.7255]
[1756570346833,0.4804,4367.9,4367.8,0.4297]
[1756570347225,0.4804,4367.9,4367.8,0.231]
[1756570347431,0.4804,4367.9,4367.1,3.2078]
[1756570347432,0.4804,4367.2,4367.1,0.4945]
[1756570347733,0.4804,4367.2,4367.1,0.7255]
[1756570347935,0.1886,4367.2,4366.9,33.2738]
[1756570348133,0.4804,4367.0,4366.9,33.2738]
[1756570348329,0.4804,4367.0,4366.9,33.209]
[1756570349136,0.2918,4367.0,4366.9,33.5048]
[1756570350835,0.2918,4367.0,4366.9,33.209]
[1756570351138,0.2918,4367.0,4366.9,33.5048]
[1756570354240,3.2078,4367.2,4366.9,33.5048]
[1756570354539,3.6882,4367.2,4366.9,33.209]
[1756570354840,0.4804,4367.0,4366.9,33.209]
[1756570355034,0.4804,4367.0,4366.9,33.5048]
[1756570355635,0.1886,4366.3,4366.2,0.4945]
[1756570355835,0.4804,4366.3,4366.2,0.7255]
[1756570357339,0.4804,4366.3,4366.2,0.4297]
[1756570357536,0.2821,4366.2,4365.5,0.2884]
[1756570357742,3.2078,4365.6,4365.4,0.2013]
[1756570358344,3.2078,4365.6,4365.5,0.4897]
[1756570358942,3.6839,4365.6,4365.5,0.4897]
[1756570359454,3.6839,4365.6,4365.5,0.7207]
[1756570360448,3.6839,4365.6,4365.5,0.231]
[1756570362250,3.6839,4365.6,4365.4,0.231]
[1756570362454,3.6839,4365.6,4365.5,0.4897]
[1756570363450,3.6839,4365.6,4364.8,73.779]
[1756570363756,0.4761,4364.6,4364.5,0.4897]
[1756570363952,0.4761,4364.6,4364.5,0.7207]
[1756570366453,0.4761,4364.6,4364.1,0.10540426]
[1756570366648,0.4761,4364.2,4364.1,0.53770426]
[1756570366855,0.4761,4364.2,4364.1,0.82610426]
[1756570367553,0.4761,4364.2,4364.1,0.53770426]
[1756570367754,0.4761,4364.2,4364.1,0.33640426]
[1756570367959,0.4761,4364.2,4364.1,0.53770426]
[1756570368262,0.4761,4364.2,4364.1,0.82610426]
[1756570368457,0.4761,4364.2,4364.1,0.53770426]
[1756570368656,0.66505548,4364.2,4364.1,0.10540426]
[1756570370666,0.4761,4364.2,4364.1,0.59510426]
[1756570370860,0.66495788,4364.2,4364.1,0.59510426]
[1756570371156,0.18885788,4364.2,4364.1,0.59510426]
[1756570371361,0.47095369,4364.2,4364.1,0.59510426]
[1756570371661,0.66495369,4364.2,4364.1,0.59510426]
[1756570372060,0.18885369,4364.2,4364.1,0.59510426]
[1756570373258,3.2078,4364.3,4364.2,0.2884]
[1756570373462,3.2078,4364.3,4364.2,0.4897]
[1756570374456,3.6839,4364.3,4364.2,0.4897]
[1756570374663,3.87284893,4364.3,4364.2,0.4897]
[1756570375165,3.4018,4364.3,4364.1,0.10540426]
[1756570375363,3.4018,4364.3,4364.1,0.59510426]
[1756570375364,0.66512288,4364.2,4364.1,0.59510426]
[1756570375564,0.4761,4364.2,4364.1,0.59510426]
[1756570375952,0.66512617,4364.2,4364.1,0.59510426]
[1756570376361,0.66512617,4364.2,4364.1,0.33740426]
[1756570376565,0.66512617,4364.2,4364.1,0.82710426]
[1756570377766,0.38302617,4364.2,4364.1,0.82710426]
[1756570378270,0.66512617,4364.2,4364.1,0.82710426]
[1756570378674,0.18902617,4364.2,4364.1,0.82710426]
[1756570380666,0.66512617,4364.2,4364.1,0.82710426]
[1756570381370,0.66512617,4364.2,4364.1,0.39380426]
[1756570381569,0.66512617,4364.2,4364.1,0.33740426]
[1756570381770,0.66512617,4364.2,4364.1,0.53870426]
[1756570381970,0.66512617,4364.2,4364.1,0.82710426]
[1756570382674,0.66512617,4364.2,4364.1,0.53870426]
[1756570382870,0.66512617,4364.2,4364.1,0.82710426]
[1756570383073,0.18902617,4364.2,4364.1,0.82710426]
[1756570383272,0.38302617,4364.2,4364.1,0.82710426]
[1756570383478,0.66512617,4364.2,4364.1,0.82710426]
[1756570384374,0.66584934,4364.2,4364.1,0.82710426]
[1756570385274,0.38374934,4364.2,4364.1,0.82710426]
[1756570385670,0.18974934,4364.2,4364.1,0.82710426]
[1756570386365,0.66584934,4364.2,4364.1,0.82710426]
[1756570386971,0.66584934,4364.2,4364.1,0.33740426]
[1756570387178,0.66584934,4364.2,4364.1,0.82710426]
[1756570389177,0.18974934,4364.2,4364.1,0.82710426]
[1756570390980,0.19382702,4364.2,4364.1,0.82840426]
[1756570392184,0.19382702,4364.2,4364.1,1.24084426]
[1756570396986,0.19382702,4364.2,4364.1,6.61184426]
[1756570397284,0.19382702,4364.2,4364.1,6.19940426]
[1756570397979,0.19393024,4364.2,4364.1,5.90970426]
[1756570398185,0.19393024,4364.2,4364.1,6.19940426]
[1756570398879,0.19393024,4364.2,4364.1,5.96740426]
[1756570399084,0.68923024,4364.2,4364.1,6.19940426]
[1756570399882,0.19393024,4364.2,4364.1,6.19940426]
[1756570401481,0.4127,4364.4,4364.2,0.2897]
[1756570401677,0.68930799,4364.3,4364.2,0.4921]
[1756570405184,0.68933626,4364.3,4364.2,0.4921]
[1756570409590,0.19403626,4364.3,4364.2,0.4921]
[1756570410300,0.19403626,4364.3,4364.2,0.90453]
[1756570410898,0.1145,4364.5,4364.4,0.84281]
[1756570411097,0.1145,4364.5,4364.4,6.34047937]
[1756570411492,0.1145,4364.5,4364.4,47.14047937]
[1756570414799,0.1145,4364.5,4364.4,52.51147937]
[1756570420101,0.2982,4364.9,4364.4,52.51147937]
[1756570420302,0.1968,4364.7,4364.6,0.4162]
[1756570420502,0.4932,4364.7,4364.6,0.6472]
[1756570422703,0.2964,4364.7,4364.6,0.4162]
[1756570422906,0.2964,4364.8,4364.7,0.2282]
[1756570423108,0.2964,4364.8,4364.7,0.6472]
[1756570423301,0.4932,4364.8,4364.7,0.6472]
[1756570423810,0.4932,4364.8,4364.7,0.4162]
[1756570424012,0.4932,4364.8,4364.7,0.6472]
[1756570426006,0.4932,4364.8,4364.5,5.371]
[1756570426308,0.4932,4364.7,4364.6,0.231]
[1756570427010,0.4932,4364.7,4364.6,0.6472]
[1756570427212,0.2964,4364.7,4364.6,0.6472]
[1756570427409,0.4932,4364.7,4364.6,0.6472]
[1756570428312,0.4932,4364.7,4364.6,0.4162]
[1756570428514,0.4932,4364.7,4364.6,0.6472]
[1756570430110,0.4109,4364.9,4364.8,0.188]
[1756570430306,0.4109,4364.9,4364.8,0.6472]
[1756570431014,0.6077,4364.9,4364.8,0.6472]
[1756570433414,0.6077,4364.9,4364.8,0.231]
[1756570433614,0.6077,4364.9,4364.5,0.2282]
[1756570433812,0.6077,4364.9,4364.8,0.231]
[1756570438518,0.6077,4364.9,4364.8,0.6472]
[1756570440219,0.6077,4364.9,4364.8,0.231]
[1756570440818,0.6077,4364.9,4364.6,2.05886937]
[1756570441019,0.4932,4364.7,4364.6,2.05886937]
[1756570441208,0.4932,4364.7,4364.6,1.74736937]
[1756570441413,0.57009678,4364.7,4364.6,0.188]
[1756570441615,0.1145,4364.9,4364.7,0.3002]
[1756570441820,0.1145,4364.9,4364.8,0.156]
[1756570442123,0.1145,4364.9,4364.8,0.7202]
[1756570444622,0.1145,4364.9,4364.5,0.188]
[1756570444817,0.1145,4364.9,4364.7,0.188]
[1756570445017,0.1145,4364.9,4364.8,0.5322]
[1756570445517,0.1145,4364.9,4364.8,0.7202]
[1756570446722,3.2078,4365.4,4364.8,0.7202]
[1756570446923,3.2078,4365.4,4364.8,0.42]
[1756570447223,3.2078,4365.4,4364.9,0.188]
[1756570447423,3.2078,4365.4,4365.0,0.2862]
[1756570447624,3.2078,4365.4,4365.1,0.232]
[1756570447821,3.3223,4365.4,4365.1,0.232]
[1756570448119,3.3223,4365.4,4365.1,0.5182]
[1756570448325,3.3223,4365.4,4365.1,0.4367]
[1756570448521,3.3223,4365.4,4365.2,0.2862]
[1756570448825,3.3223,4365.4,4365.1,0.5182]
[1756570452029,3.3223,4365.4,4365.2,0.2862]
[1756570458430,3.3223,4365.4,4365.1,0.232]
[1756570458932,3.3223,4365.4,4365.1,0.4367]
[1756570459129,3.3223,4365.4,4365.2,0.2862]
[1756570459323,3.3223,4365.4,4365.2,0.4909]
[1756570459524,3.3223,4365.4,4365.2,0.2047]
[1756570459734,3.3223,4365.4,4365.3,0.2862]
[1756570460734,3.3223,4365.4,4365.1,0.5182]
[1756570461437,4.80561448,4365.3,4364.1,0.62360426]
[1756570461630,3.2078,4364.7,4364.1,0.62360426]
[1756570462029,3.2078,4364.7,4364.1,0.33740426]
[1756570466837,3.2078,4364.7,4364.1,0.62360426]
[1756570467038,3.2078,4364.7,4364.1,0.82830426]
[1756570468938,3.2078,4364.7,4364.2,0.2862]
[1756570469139,3.2078,4364.7,4364.1,0.54210426]
[1756570469339,3.2078,4364.7,4364.2,0.2862]
[1756570469540,3.2078,4364.7,4364.3,0.2862]
[1756570469939,3.2078,4364.7,4364.1,0.54210426]
[1756570470144,3.2078,4364.7,4364.2,0.2862]
[1756570470339,3.2078,4364.7,4364.3,0.2862]
[1756570470535,3.2078,4364.7,4364.2,0.2862]
[1756570471033,3.2078,4364.7,4364.2,0.2047]
[1756570471237,3.2078,4364.7,4364.2,0.2862]
[1756570471839,0.1145,4364.6,4364.2,0.2862]
[1756570472039,0.1145,4364.6,4364.2,0.2047]
[1756570472239,0.1145,4364.6,4364.1,0.33740426]
[1756570472439,0.1145,4364.6,4364.1,0.54210426]
[1756570472741,0.1145,4364.6,4364.2,0.232]
[1756570473038,0.1145,4364.6,4364.3,0.2862]
[1756570474030,0.1145,4364.6,4364.3,0.2047]
[1756570474237,0.1145,4364.6,4364.5,0.2862]
[1756570476243,0.1145,4364.6,4364.5,0.4909]
[1756570476541,0.1145,4364.6,4364.1,0.10540426]
[1756570476740,0.1145,4364.6,4364.2,0.2862]
[1756570476942,3.2078,4364.3,4364.2,0.2862]
[1756570477242,3.2078,4364.3,4364.2,0.3034]
[1756570477541,3.2078,4364.3,4364.1,0.10540426]
[1756570477742,3.2078,4364.3,4364.1,0.40880426]
[1756570477943,3.2078,4364.3,4364.1,0.10540426]
[1756570483649,3.2078,4364.3,4364.2,0.3034]
[1756570483839,3.2078,4364.3,4364.1,0.10540426]
[1756570484949,3.2078,4364.3,4364.1,0.40880426]
[1756570485250,3.2078,4364.3,4364.1,0.10540426]
[1756570488151,0.232,4364.2,4364.1,0.10540426]
[1756570488350,0.232,4364.2,4364.1,0.01712354]
[1756570488551,0.232,4364.2,4364.1,0.32052354]
[1756570491047,0.231,4364.2,4364.1,0.32052354]
[1756570491552,0.80883756,4364.2,4364.1,0.32052354]
[1756570491854,0.80883756,4364.2,4364.1,0.01712354]
[1756570492050,0.80883756,4364.2,4364.1,0.50812354]
[1756570492352,0.57783756,4364.2,4364.1,0.50812354]
[1756570493051,3.4388,4364.3,4364.2,0.491]
[1756570493652,4.01660175,4364.3,4364.2,0.3034]
[1756570495050,4.01660175,4364.3,4364.2,0.491]
[1756570495448,3.78560175,4364.3,4364.1,0.01712354]
[1756570495649,3.2078,4364.3,4364.2,0.491]
[1756570496855,3.2078,4364.3,4364.2,4.491]
[1756570497852,3.2078,4364.3,4364.2,4.722]
[1756570499259,3.2078,4364.3,4364.2,0.722]
[1756570500561,3.2078,4364.3,4364.2,0.5344]
[1756570500763,3.2078,4364.3,4364.1,0.01712354]
[1756570501358,3.2078,4364.3,4364.1,0.00231383]
[1756570501769,3.2078,4364.3,4364.2,0.491]
[1756570503772,3.2078,4364.3,4364.2,0.3034]
[1756570505670,3.2078,4364.3,4364.2,0.491]
[1756570507176,3.2078,4364.3,4364.1,0.00231383]
[1756570507574,3.2078,4364.3,4364.1,0.30031383]
[1756570508275,3.2078,4364.3,4364.1,0.00231383]
[1756570508470,0.231,4364.2,4364.1,0.00231383]
[1756570508675,0.80937188,4364.2,4364.1,0.00231383]
[1756570509380,0.231,4364.2,4364.1,0.00231383]
[1756570510879,0.80901111,4364.2,4364.1,0.00231383]
[1756570511381,0.80901111,4364.2,4364.1,0.00031406]